[Event "GrandPrix_29.05"]
[Site "Chess.com"]
[Date "2020.05.29"]
[Round "7"]
[White "DarkAlekhine"]
[Black "PlayChessSimple"]
[Result "0-1"]
[WhiteElo "2065"]
[BlackElo "2228"]
[TimeControl "600+2"]
[EndTime "12:31:44 PDT"]
[Termination "PlayChessSimple won by resignation"]

1. d4 {[%clk 0:10:01.9]} 1... e6 {[%clk 0:09:59.2]} 2. e4 {[%clk 0:09:53.3]}
2... d5 {[%clk 0:09:59.4]} 3. Nc3 {[%clk 0:09:54.6]} 3... Nf6 {[%clk 0:09:59.7]}
4. Bg5 {[%clk 0:09:55.2]} 4... Bb4 {[%clk 0:10:00.7]} 5. e5 {[%clk 0:09:55.7]}
5... h6 {[%clk 0:10:01.8]} 6. Bd2 {[%clk 0:09:57.1]} 6... Bxc3 {[%clk
0:10:01.8]} 7. bxc3 {[%clk 0:09:59]} 7... Ne4 {[%clk 0:10:03.1]} 8. Bc1 {[%clk
0:10:00.6]} 8... c5 {[%clk 0:10:02.5]} 9. Qg4 {[%clk 0:09:45.8]} 9... g6 {[%clk
0:09:35.4]} 10. dxc5 {[%clk 0:09:14.3]} 10... Qa5 {[%clk 0:09:27.7]} 11. Ne2
{[%clk 0:09:09.5]} 11... Nc6 {[%clk 0:09:16.2]} 12. f3 {[%clk 0:08:43]} 12...
Nxc5 {[%clk 0:09:12.4]} 13. Qf4 {[%clk 0:07:32.2]} 13... Qc7 {[%clk 0:08:47.2]}
14. Ba3 {[%clk 0:07:12.5]} 14... b6 {[%clk 0:08:42.2]} 15. c4 {[%clk 0:07:08.9]}
15... Nxe5 {[%clk 0:08:22]} 16. O-O-O {[%clk 0:06:29.5]} 16... Ba6 {[%clk
0:07:58.9]} 17. Bb2 {[%clk 0:05:25.5]} 17... Ncd7 {[%clk 0:07:45.4]} 18. cxd5
{[%clk 0:05:22.8]} 18... Bxe2 {[%clk 0:07:40.2]} 19. d6 {[%clk 0:05:03.7]} 19...
Qc5 {[%clk 0:07:01.8]} 20. Bxe2 {[%clk 0:04:55.9]} 20... Rc8 {[%clk 0:07:01.1]}
21. Rd2 {[%clk 0:04:48.7]} 21... f6 {[%clk 0:06:39.4]} 22. Qe4 {[%clk
0:03:27.7]} 22... Kf7 {[%clk 0:06:36.6]} 23. Re1 {[%clk 0:03:20.6]} 23... Rhe8
{[%clk 0:06:14.1]} 24. Qa4 {[%clk 0:02:32.5]} 24... Red8 {[%clk 0:05:33.3]} 25.
Bd4 {[%clk 0:02:06.9]} 25... Qxd6 {[%clk 0:04:13]} 26. Bxe5 {[%clk 0:02:01.5]}
26... Qxd2+ {[%clk 0:04:13.8]} 27. Kxd2 {[%clk 0:01:57.5]} 27... Nc5+ {[%clk
0:04:15]} 28. Qd4 {[%clk 0:01:57.7]} 28... fxe5 {[%clk 0:04:16.3]} 29. Qxd8
{[%clk 0:01:58.8]} 29... Rxd8+ {[%clk 0:04:17.5]} 30. Kc3 {[%clk 0:01:32.1]}
30... Rd4 {[%clk 0:04:14.9]} 31. Bb5 {[%clk 0:01:26.2]} 31... Kf6 {[%clk
0:04:13.8]} 32. a3 {[%clk 0:01:12]} 32... g5 {[%clk 0:04:12.9]} 33. Bf1 {[%clk
0:00:57]} 33... Ra4 {[%clk 0:04:07.3]} 34. Kb2 {[%clk 0:00:57.7]} 34... Rd4
{[%clk 0:03:58.1]} 35. Kc3 {[%clk 0:00:58.5]} 35... a6 {[%clk 0:03:44.8]} 36.
Bc4 {[%clk 0:00:49.8]} 36... b5 {[%clk 0:03:44.4]} 37. Bf1 {[%clk 0:00:50.3]}
37... Ra4 {[%clk 0:03:32]} 38. Kb2 {[%clk 0:00:51]} 38... e4 {[%clk 0:03:27.3]}
39. fxe4 {[%clk 0:00:45.4]} 39... Nxe4 {[%clk 0:03:12.4]} 40. c4 {[%clk
0:00:42.3]} 40... Nd6 {[%clk 0:03:04]} 41. cxb5 {[%clk 0:00:43.2]} 41... axb5
{[%clk 0:03:03.6]} 42. Bd3 {[%clk 0:00:43.8]} 42... e5 {[%clk 0:02:50]} 43. Kb3
{[%clk 0:00:41.8]} 43... Rd4 {[%clk 0:02:41.8]} 44. Rf1+ {[%clk 0:00:28.7]}
44... Ke6 {[%clk 0:02:38.3]} 45. Kc3 {[%clk 0:00:27.1]} 45... Ra4 {[%clk
0:02:33.4]} 46. Kb3 {[%clk 0:00:25.8]} 46... Rf4 {[%clk 0:02:34.2]} 47. Rxf4
{[%clk 0:00:21]} 47... gxf4 {[%clk 0:02:35.1]} 48. Kb4 {[%clk 0:00:21.4]} 48...
e4 {[%clk 0:02:36.3]} 49. Be2 {[%clk 0:00:21.7]} 49... Kd5 {[%clk 0:02:34.6]}
50. Kc3 {[%clk 0:00:20.9]} 50... Kc5 {[%clk 0:02:30.2]} 51. Bf1 {[%clk
0:00:18.3]} 51... Nc4 {[%clk 0:02:20.9]} 52. a4 {[%clk 0:00:17.8]} 52... Ne3
{[%clk 0:02:21.6]} 53. Bxb5 {[%clk 0:00:18.4]} 53... Nxg2 {[%clk 0:02:22.7]} 54.
Be8 {[%clk 0:00:18]} 54... f3 {[%clk 0:02:20.4]} 55. Bh5 {[%clk 0:00:12.7]}
55... Nf4 {[%clk 0:02:18.3]} 56. Be8 {[%clk 0:00:12.3]} 56... e3 {[%clk
0:02:14.9]} 57. Bb5 {[%clk 0:00:13.1]} 57... f2 {[%clk 0:02:10.3]} 0-1

[Event "GrandPrix_29.05"]
[Site "Chess.com"]
[Date "2020.05.29"]
[Round "7"]
[White "EvgenyPigusov"]
[Black "sergiochess83"]
[Result "0-1"]
[WhiteElo "2261"]
[BlackElo "2531"]
[TimeControl "600+2"]
[EndTime "12:31:45 PDT"]
[Termination "sergiochess83 won by resignation"]

1. Nf3 {[%clk 0:10:01.9]} 1... d5 {[%clk 0:09:58.4]} 2. g3 {[%clk 0:10:01.9]}
2... g6 {[%clk 0:09:49.8]} 3. d4 {[%clk 0:09:58.2]} 3... Bg7 {[%clk 0:09:49.8]}
4. c4 {[%clk 0:09:59]} 4... dxc4 {[%clk 0:09:43.4]} 5. Qa4+ {[%clk 0:09:52.1]}
5... Nc6 {[%clk 0:08:29.2]} 6. Bg2 {[%clk 0:09:40.5]} 6... Qd7 {[%clk
0:08:25.6]} 7. Qxc4 {[%clk 0:08:29.7]} 7... Nxd4 {[%clk 0:07:31.4]} 8. Nxd4
{[%clk 0:08:28.2]} 8... Bxd4 {[%clk 0:03:59.5]} 9. Nc3 {[%clk 0:08:06.9]} 9...
c6 {[%clk 0:03:57.5]} 10. O-O {[%clk 0:07:20.2]} 10... Bb6 {[%clk 0:03:54.5]}
11. Na4 {[%clk 0:06:51.3]} 11... Qe6 {[%clk 0:03:30.2]} 12. Nxb6 {[%clk
0:06:18.6]} 12... axb6 {[%clk 0:03:30.6]} 13. Qc3 {[%clk 0:05:59.7]} 13... Nf6
{[%clk 0:03:31.4]} 14. Bh6 {[%clk 0:05:59.9]} 14... Rg8 {[%clk 0:02:56.2]} 15.
Rfd1 {[%clk 0:05:18]} 15... Nd7 {[%clk 0:02:08.2]} 16. Rd3 {[%clk 0:04:24.6]}
16... g5 {[%clk 0:01:14.1]} 17. Bg7 {[%clk 0:04:11.7]} 17... f6 {[%clk
0:01:02.7]} 18. Re3 {[%clk 0:04:06.2]} 18... Ne5 {[%clk 0:00:58.8]} 19. Bh6
{[%clk 0:03:49.4]} 19... Qc4 {[%clk 0:00:58]} 20. Rxe5 {[%clk 0:01:44.2]} 20...
Qxc3 {[%clk 0:00:57]} 21. bxc3 {[%clk 0:01:45.4]} 21... fxe5 {[%clk 0:00:57.9]}
22. Be4 {[%clk 0:01:46.3]} 22... Kf7 {[%clk 0:00:48.9]} 23. h4 {[%clk 0:01:38]}
23... gxh4 {[%clk 0:00:47.7]} 24. Kh2 {[%clk 0:01:38.3]} 24... Be6 {[%clk
0:00:44]} 25. a4 {[%clk 0:01:25.5]} 25... Rg4 {[%clk 0:00:43.3]} 26. Bc2 {[%clk
0:01:23.3]} 26... Rc4 {[%clk 0:00:33.8]} 27. Bd2 {[%clk 0:01:15.7]} 27... b5
{[%clk 0:00:32.4]} 28. a5 {[%clk 0:01:05]} 28... b4 {[%clk 0:00:15.4]} 29. Bd3
{[%clk 0:00:46.7]} 29... bxc3 {[%clk 0:00:09]} 30. Bxc4 {[%clk 0:00:35.8]} 30...
cxd2 {[%clk 0:00:09.9]} 31. Bxe6+ {[%clk 0:00:31]} 31... Kxe6 {[%clk 0:00:11.8]}
32. Rd1 {[%clk 0:00:30.2]} 32... hxg3+ {[%clk 0:00:13]} 33. fxg3 {[%clk
0:00:21.9]} 33... Rxa5 {[%clk 0:00:14.9]} 34. Rxd2 {[%clk 0:00:22.1]} 34... b5
{[%clk 0:00:16.5]} 0-1

[Event "GrandPrix_29.05"]
[Site "Chess.com"]
[Date "2020.05.29"]
[Round "7"]
[White "GeorgMeier"]
[Black "v-kazakouski"]
[Result "1-0"]
[WhiteElo "2626"]
[BlackElo "2404"]
[TimeControl "600+2"]
[EndTime "12:31:48 PDT"]
[Termination "GeorgMeier won by resignation"]

1. Nf3 {[%clk 0:10:01.9]} 1... Nf6 {[%clk 0:09:57.1]} 2. g3 {[%clk 0:10:03.3]}
2... e6 {[%clk 0:09:57.5]} 3. Bg2 {[%clk 0:10:04.7]} 3... d5 {[%clk 0:09:57.8]}
4. O-O {[%clk 0:10:05.6]} 4... Be7 {[%clk 0:09:55.2]} 5. c4 {[%clk 0:10:06]}
5... dxc4 {[%clk 0:09:29.5]} 6. Na3 {[%clk 0:10:06.2]} 6... Bxa3 {[%clk
0:09:29.6]} 7. bxa3 {[%clk 0:09:47.7]} 7... O-O {[%clk 0:09:26.1]} 8. a4 {[%clk
0:09:24.1]} 8... Nc6 {[%clk 0:09:09.9]} 9. Bb2 {[%clk 0:09:08.1]} 9... Re8
{[%clk 0:08:02]} 10. Qc2 {[%clk 0:09:01.4]} 10... e5 {[%clk 0:07:36.3]} 11. Qxc4
{[%clk 0:09:02.3]} 11... Be6 {[%clk 0:07:36.7]} 12. Qc2 {[%clk 0:08:57.5]} 12...
Qd6 {[%clk 0:06:17]} 13. d3 {[%clk 0:08:46]} 13... h6 {[%clk 0:06:09.8]} 14.
Rfc1 {[%clk 0:08:43.9]} 14... Bd5 {[%clk 0:05:43.4]} 15. Qc5 {[%clk 0:08:28.6]}
15... Nd7 {[%clk 0:04:38.5]} 16. Qxd6 {[%clk 0:08:19.5]} 16... cxd6 {[%clk
0:04:40.4]} 17. Ba3 {[%clk 0:08:20.7]} 17... e4 {[%clk 0:03:47.7]} 18. dxe4
{[%clk 0:04:18.8]} 18... Rxe4 {[%clk 0:03:45.8]} 19. Nh4 {[%clk 0:04:19.3]}
19... Rxa4 {[%clk 0:02:30.2]} 20. Bxd5 {[%clk 0:04:19.2]} 20... Rxa3 {[%clk
0:02:31.3]} 21. Nf5 {[%clk 0:04:20.5]} 21... Nb6 {[%clk 0:01:06.9]} 22. Bxc6
{[%clk 0:04:13.4]} 22... bxc6 {[%clk 0:01:08.8]} 23. Nxd6 {[%clk 0:03:54.8]}
23... Nd5 {[%clk 0:01:02.9]} 24. Nc4 {[%clk 0:03:48.2]} 24... Ra4 {[%clk
0:00:56.7]} 25. a3 {[%clk 0:03:32]} 25... Rc8 {[%clk 0:00:50.4]} 26. Rab1 {[%clk
0:02:56.1]} 26... Nb6 {[%clk 0:00:32.8]} 27. Nxb6 {[%clk 0:01:42.6]} 27... axb6
{[%clk 0:00:33.8]} 28. Rxb6 {[%clk 0:01:44.5]} 28... Rxa3 {[%clk 0:00:35.1]} 29.
Rbxc6 {[%clk 0:01:38.6]} 29... Rxc6 {[%clk 0:00:36]} 30. Rxc6 {[%clk 0:01:40.5]}
30... h5 {[%clk 0:00:37.5]} 31. f4 {[%clk 0:01:34]} 31... g6 {[%clk 0:00:32.7]}
32. f5 {[%clk 0:01:26.4]} 32... Kg7 {[%clk 0:00:08.3]} 33. f6+ {[%clk 0:01:19]}
33... Kh6 {[%clk 0:00:04.3]} 34. Rc7 {[%clk 0:01:19.8]} 34... Ra6 {[%clk
0:00:02.6]} 35. Rxf7 {[%clk 0:01:20.6]} 35... Kg5 {[%clk 0:00:04.1]} 36. Rf8
{[%clk 0:01:13]} 36... Rxf6 {[%clk 0:00:02.6]} 37. Rxf6 {[%clk 0:00:57.5]} 37...
Kxf6 {[%clk 0:00:04.5]} 38. Kf2 {[%clk 0:00:59.1]} 38... Kf5 {[%clk 0:00:03.1]}
39. Kf3 {[%clk 0:00:57.3]} 39... Ke5 {[%clk 0:00:02.9]} 40. h4 {[%clk
0:00:55.5]} 40... Kf5 {[%clk 0:00:03.2]} 41. e4+ {[%clk 0:00:56.7]} 1-0

[Event "GrandPrix_29.05"]
[Site "Chess.com"]
[Date "2020.05.29"]
[Round "7"]
[White "Firegrizzly"]
[Black "SipkeErnst"]
[Result "0-1"]
[WhiteElo "2222"]
[BlackElo "2167"]
[TimeControl "600+2"]
[EndTime "12:31:55 PDT"]
[Termination "SipkeErnst won by resignation"]

1. e4 {[%clk 0:10:01.9]} 1... e5 {[%clk 0:09:59.7]} 2. Nf3 {[%clk 0:10:00.2]}
2... Nc6 {[%clk 0:10:01.1]} 3. Bc4 {[%clk 0:09:59.3]} 3... Nf6 {[%clk
0:09:59.3]} 4. d3 {[%clk 0:10:00.2]} 4... Bc5 {[%clk 0:09:59.3]} 5. O-O {[%clk
0:10:00.1]} 5... a6 {[%clk 0:09:57.8]} 6. a4 {[%clk 0:09:58.9]} 6... d6 {[%clk
0:09:56.8]} 7. c3 {[%clk 0:09:55.8]} 7... Ba7 {[%clk 0:09:56.9]} 8. Nbd2 {[%clk
0:09:48.8]} 8... O-O {[%clk 0:09:51.8]} 9. h3 {[%clk 0:09:41.7]} 9... Re8 {[%clk
0:09:51.1]} 10. Re1 {[%clk 0:09:41.5]} 10... Be6 {[%clk 0:09:48.4]} 11. a5
{[%clk 0:09:29.4]} 11... Bxc4 {[%clk 0:09:17]} 12. Nxc4 {[%clk 0:09:23.3]} 12...
d5 {[%clk 0:09:18.3]} 13. exd5 {[%clk 0:09:22.1]} 13... Qxd5 {[%clk 0:09:20.2]}
14. Ne3 {[%clk 0:09:06.7]} 14... Bxe3 {[%clk 0:09:06]} 15. Bxe3 {[%clk
0:09:06.3]} 15... Rad8 {[%clk 0:09:05]} 16. d4 {[%clk 0:08:47.5]} 16... exd4
{[%clk 0:08:38.9]} 17. Nxd4 {[%clk 0:08:45.5]} 17... Nxa5 {[%clk 0:08:30.3]} 18.
b3 {[%clk 0:07:28.2]} 18... Nc6 {[%clk 0:08:29.1]} 19. Qc2 {[%clk 0:07:21.8]}
19... Ne4 {[%clk 0:08:15.6]} 20. Rad1 {[%clk 0:07:15.7]} 20... Nxd4 {[%clk
0:07:51.7]} 21. Rxd4 {[%clk 0:07:11.2]} 21... Qc6 {[%clk 0:07:51.8]} 22. Rc4
{[%clk 0:07:07.5]} 22... Qd5 {[%clk 0:05:53.5]} 23. Rd4 {[%clk 0:06:51.7]} 23...
Qf5 {[%clk 0:05:11.2]} 24. c4 {[%clk 0:05:39.3]} 24... Rxd4 {[%clk 0:04:33.1]}
25. Bxd4 {[%clk 0:05:39.4]} 25... Re6 {[%clk 0:04:33]} 26. Re3 {[%clk
0:05:05.9]} 26... h5 {[%clk 0:04:13.7]} 27. Rf3 {[%clk 0:04:53]} 27... Qa5
{[%clk 0:04:01.8]} 28. Re3 {[%clk 0:04:37.1]} 28... Qf5 {[%clk 0:04:01.5]} 29.
Rf3 {[%clk 0:04:36.7]} 29... Qg5 {[%clk 0:03:51.3]} 30. b4 {[%clk 0:04:08.3]}
30... Qd2 {[%clk 0:03:31.5]} 31. Qxd2 {[%clk 0:01:43.6]} 31... Nxd2 {[%clk
0:03:33.4]} 32. Rc3 {[%clk 0:01:42.4]} 32... Re1+ {[%clk 0:02:47.5]} 33. Kh2
{[%clk 0:01:42.7]} 33... Nf1+ {[%clk 0:02:47.8]} 34. Kg1 {[%clk 0:01:43.1]}
34... Rd1 {[%clk 0:01:35.8]} 35. Be5 {[%clk 0:00:59.8]} 35... c6 {[%clk
0:00:55.7]} 36. f4 {[%clk 0:00:38.6]} 36... Ng3+ {[%clk 0:00:53.4]} 37. Kh2
{[%clk 0:00:30.8]} 37... h4 {[%clk 0:00:54.2]} 38. Rxg3 {[%clk 0:00:31]} 38...
hxg3+ {[%clk 0:00:54.9]} 39. Kxg3 {[%clk 0:00:32.9]} 39... f6 {[%clk 0:00:56]}
40. Bc7 {[%clk 0:00:32.2]} 40... Rd4 {[%clk 0:00:55.7]} 41. Kg4 {[%clk
0:00:30.6]} 41... Rxc4 {[%clk 0:00:54.9]} 42. Bd6 {[%clk 0:00:32.2]} 42... Kf7
{[%clk 0:00:55.4]} 43. h4 {[%clk 0:00:32.2]} 43... b6 {[%clk 0:00:55.3]} 44. h5
{[%clk 0:00:33.3]} 44... a5 {[%clk 0:00:56]} 45. bxa5 {[%clk 0:00:33.5]} 45...
bxa5 {[%clk 0:00:57]} 46. Kf5 {[%clk 0:00:35]} 46... a4 {[%clk 0:00:57.8]} 47.
g4 {[%clk 0:00:35.5]} 47... Rd4 {[%clk 0:00:57.9]} 48. Ba3 {[%clk 0:00:34.8]}
48... Rd3 {[%clk 0:00:57.4]} 49. Bb4 {[%clk 0:00:35.1]} 49... c5 {[%clk
0:00:57.8]} 50. Bxc5 {[%clk 0:00:35.5]} 50... Rd5+ {[%clk 0:00:57.8]} 51. Ke4
{[%clk 0:00:37.4]} 51... Rxc5 {[%clk 0:00:58.9]} 0-1

[Event "GrandPrix_29.05"]
[Site "Chess.com"]
[Date "2020.05.29"]
[Round "7"]
[White "gygygygygyggygygygy"]
[Black "am00ss00"]
[Result "1-0"]
[WhiteElo "2004"]
[BlackElo "2049"]
[TimeControl "600+2"]
[EndTime "12:31:55 PDT"]
[Termination "gygygygygyggygygygy won by resignation"]

1. e4 {[%clk 0:10:01.9]} 1... d6 {[%clk 0:09:19.6]} 2. d3 {[%clk 0:09:59.1]}
2... Nf6 {[%clk 0:09:17.5]} 3. g3 {[%clk 0:09:59.3]} 3... g6 {[%clk 0:09:18.5]}
4. Bg2 {[%clk 0:10:00.7]} 4... Bg7 {[%clk 0:09:19.9]} 5. Nf3 {[%clk 0:10:01.3]}
5... O-O {[%clk 0:09:20.2]} 6. O-O {[%clk 0:10:02.3]} 6... c5 {[%clk 0:09:20.1]}
7. Re1 {[%clk 0:10:01.7]} 7... Nc6 {[%clk 0:09:21.1]} 8. c3 {[%clk 0:10:02.3]}
8... Rb8 {[%clk 0:09:22]} 9. a4 {[%clk 0:10:02.1]} 9... a6 {[%clk 0:09:23]} 10.
d4 {[%clk 0:10:03.4]} 10... cxd4 {[%clk 0:09:21.4]} 11. cxd4 {[%clk 0:10:04]}
11... Nd7 {[%clk 0:09:13.8]} 12. Nc3 {[%clk 0:09:49.9]} 12... Qa5 {[%clk
0:09:08.4]} 13. Bd2 {[%clk 0:09:04.3]} 13... e6 {[%clk 0:09:05.3]} 14. d5 {[%clk
0:08:38.9]} 14... exd5 {[%clk 0:08:48.3]} 15. Nxd5 {[%clk 0:08:19.8]} 15... Qd8
{[%clk 0:08:37.6]} 16. Bg5 {[%clk 0:08:16.9]} 16... f6 {[%clk 0:08:07.5]} 17.
Be3 {[%clk 0:07:50.8]} 17... Nde5 {[%clk 0:07:38.4]} 18. Nd4 {[%clk 0:06:54]}
18... Nxd4 {[%clk 0:07:26.2]} 19. Bxd4 {[%clk 0:06:50.9]} 19... Be6 {[%clk
0:07:21]} 20. f4 {[%clk 0:05:57.2]} 20... Nc6 {[%clk 0:07:20.2]} 21. Bb6 {[%clk
0:05:54.3]} 21... Qd7 {[%clk 0:07:16.2]} 22. a5 {[%clk 0:05:35.6]} 22... Rbc8
{[%clk 0:06:36.7]} 23. Qd2 {[%clk 0:04:37]} 23... Rfe8 {[%clk 0:06:30.3]} 24.
Rad1 {[%clk 0:04:33.2]} 24... f5 {[%clk 0:06:10.7]} 25. Bf2 {[%clk 0:04:00.7]}
25... Rcd8 {[%clk 0:05:26.7]} 26. Nb6 {[%clk 0:03:29.5]} 26... Qf7 {[%clk
0:05:23.5]} 27. exf5 {[%clk 0:03:27.4]} 27... Bxf5 {[%clk 0:05:21.1]} 28. Bd5
{[%clk 0:03:27.4]} 28... Be6 {[%clk 0:05:16.9]} 29. Nc4 {[%clk 0:02:17.7]} 29...
Bxd5 {[%clk 0:05:07.7]} 30. Rxe8+ {[%clk 0:02:14.1]} 30... Rxe8 {[%clk
0:05:04.7]} 31. Qxd5 {[%clk 0:02:15]} 31... Qxd5 {[%clk 0:04:54.1]} 32. Rxd5
{[%clk 0:02:14.4]} 32... Re2 {[%clk 0:04:45.6]} 33. b3 {[%clk 0:01:59.6]} 33...
Ra2 {[%clk 0:04:15.8]} 34. Rxd6 {[%clk 0:01:49.9]} 34... Ra1+ {[%clk 0:03:06]}
35. Kg2 {[%clk 0:01:50.2]} 35... Rb1 {[%clk 0:03:06.2]} 36. Rd3 {[%clk
0:01:32.2]} 36... Bf8 {[%clk 0:02:45.8]} 37. Bb6 {[%clk 0:01:09]} 37... Nb4
{[%clk 0:02:24.6]} 38. Rd8 {[%clk 0:01:04.9]} 38... Nc6 {[%clk 0:02:06.6]} 39.
Rd7 {[%clk 0:00:57]} 39... Rxb3 {[%clk 0:02:06]} 40. Rxb7 {[%clk 0:00:56.6]}
40... Rb4 {[%clk 0:01:54.5]} 41. Ne5 {[%clk 0:00:52.5]} 41... Nxa5 {[%clk
0:01:51]} 42. Rb8 {[%clk 0:00:50.5]} 42... Rb2+ {[%clk 0:01:48]} 43. Kh3 {[%clk
0:00:41.9]} 43... Kg7 {[%clk 0:01:31]} 44. Nd7 {[%clk 0:00:40.8]} 44... Bd6
{[%clk 0:01:27.9]} 45. Bd4+ {[%clk 0:00:39.9]} 45... Kf7 {[%clk 0:01:21.8]} 46.
Rxb2 {[%clk 0:00:40.9]} 1-0

[Event "GrandPrix_29.05"]
[Site "Chess.com"]
[Date "2020.05.29"]
[Round "7"]
[White "Nuvas"]
[Black "khekhm"]
[Result "1/2-1/2"]
[WhiteElo "2261"]
[BlackElo "2385"]
[TimeControl "600+2"]
[EndTime "12:31:56 PDT"]
[Termination "Game drawn by repetition"]

1. d4 {[%clk 0:10:01.9]} 1... Nf6 {[%clk 0:09:54.7]} 2. c4 {[%clk 0:10:02.8]}
2... g6 {[%clk 0:09:55.4]} 3. g3 {[%clk 0:10:03.4]} 3... Bg7 {[%clk 0:09:55.7]}
4. Bg2 {[%clk 0:10:04.8]} 4... d5 {[%clk 0:09:56.4]} 5. cxd5 {[%clk 0:10:05.2]}
5... Nxd5 {[%clk 0:09:58.3]} 6. e4 {[%clk 0:10:06.5]} 6... Nb6 {[%clk 0:09:59]}
7. Ne2 {[%clk 0:10:07.3]} 7... c5 {[%clk 0:09:52]} 8. d5 {[%clk 0:10:07.1]} 8...
O-O {[%clk 0:09:51.6]} 9. O-O {[%clk 0:10:07.9]} 9... e6 {[%clk 0:09:52.9]} 10.
Nbc3 {[%clk 0:10:08.8]} 10... exd5 {[%clk 0:09:53.7]} 11. exd5 {[%clk
0:10:00.2]} 11... Bf5 {[%clk 0:09:44.3]} 12. Be3 {[%clk 0:10:01]} 12... Na6
{[%clk 0:08:50.3]} 13. b3 {[%clk 0:10:01.5]} 13... Qd7 {[%clk 0:08:41.6]} 14.
Re1 {[%clk 0:09:56.1]} 14... Rac8 {[%clk 0:08:17.5]} 15. a3 {[%clk 0:09:38]}
15... Rfe8 {[%clk 0:08:07.6]} 16. Rc1 {[%clk 0:09:37.1]} 16... c4 {[%clk
0:06:14.9]} 17. b4 {[%clk 0:08:48.4]} 17... Nc7 {[%clk 0:06:15.3]} 18. d6 {[%clk
0:08:25.5]} 18... Ne6 {[%clk 0:06:12.4]} 19. Bxb6 {[%clk 0:08:26.2]} 19... axb6
{[%clk 0:06:10.3]} 20. Nd5 {[%clk 0:08:27.5]} 20... Bd3 {[%clk 0:05:40.3]} 21.
Nxb6 {[%clk 0:08:23.5]} 21... Qxd6 {[%clk 0:05:40.9]} 22. Nxc8 {[%clk
0:08:24.5]} 22... Rxc8 {[%clk 0:05:42.8]} 23. Bxb7 {[%clk 0:08:15.3]} 23... Rd8
{[%clk 0:05:43.9]} 24. Bg2 {[%clk 0:08:13.1]} 24... Bb2 {[%clk 0:05:38]} 25. Ra1
{[%clk 0:05:04.3]} 25... c3 {[%clk 0:05:12.8]} 26. Rc1 {[%clk 0:03:25.9]} 26...
Bxe2 {[%clk 0:01:58]} 27. Qxe2 {[%clk 0:03:26.5]} 27... Nd4 {[%clk 0:00:37.6]}
28. Qc4 {[%clk 0:03:25.3]} 28... Bxa3 {[%clk 0:00:25.4]} 29. Rxc3 {[%clk
0:02:03.7]} 29... Bxb4 {[%clk 0:00:26.2]} 30. Rcc1 {[%clk 0:01:40.5]} 30... Bxe1
{[%clk 0:00:26.5]} 31. Rxe1 {[%clk 0:01:42.1]} 31... Kg7 {[%clk 0:00:24.2]} 32.
h4 {[%clk 0:01:39.2]} 32... h5 {[%clk 0:00:20.1]} 33. Re4 {[%clk 0:01:21.2]}
33... Nf5 {[%clk 0:00:12.6]} 34. Qc3+ {[%clk 0:01:01.8]} 34... Qf6 {[%clk
0:00:13.5]} 35. Qxf6+ {[%clk 0:01:03]} 35... Kxf6 {[%clk 0:00:15.4]} 36. Rf4
{[%clk 0:01:04.3]} 36... Ke5 {[%clk 0:00:15]} 37. Re4+ {[%clk 0:01:05.1]} 37...
Kf6 {[%clk 0:00:16.3]} 38. Rf4 {[%clk 0:01:06.7]} 38... Rd1+ {[%clk 0:00:17]}
39. Kh2 {[%clk 0:01:07.7]} 39... Rd4 {[%clk 0:00:15.4]} 40. Rxd4 {[%clk
0:01:07.9]} 40... Nxd4 {[%clk 0:00:17.3]} 41. Bd5 {[%clk 0:01:09.1]} 41... Nf5
{[%clk 0:00:14.5]} 42. Kg2 {[%clk 0:01:09.4]} 42... Nd6 {[%clk 0:00:15.7]} 43.
Bb3 {[%clk 0:01:10.2]} 43... Ke5 {[%clk 0:00:16.9]} 44. Kf3 {[%clk 0:01:09.9]}
44... Kf5 {[%clk 0:00:17.3]} 45. Bc2+ {[%clk 0:01:09.8]} 45... Ke5 {[%clk
0:00:18.5]} 46. Bb3 {[%clk 0:01:11.3]} 46... Kf5 {[%clk 0:00:10]} 47. Bc2+
{[%clk 0:01:11.6]} 47... Ke5 {[%clk 0:00:11.5]} 48. Bb3 {[%clk 0:01:13.2]}
1/2-1/2

[Event "GrandPrix_29.05"]
[Site "Chess.com"]
[Date "2020.05.29"]
[Round "7"]
[White "rim1618"]
[Black "Msb2"]
[Result "0-1"]
[WhiteElo "2357"]
[BlackElo "2588"]
[TimeControl "600+2"]
[EndTime "12:32:00 PDT"]
[Termination "Msb2 won by resignation"]

1. d4 {[%clk 0:09:41.3]} 1... d5 {[%clk 0:09:58.3]} 2. Nf3 {[%clk 0:09:38.5]}
2... Nf6 {[%clk 0:09:59.3]} 3. c4 {[%clk 0:09:39.6]} 3... c6 {[%clk 0:10:00.7]}
4. e3 {[%clk 0:09:39.8]} 4... Bf5 {[%clk 0:10:01.1]} 5. Nc3 {[%clk 0:09:40.4]}
5... e6 {[%clk 0:10:02.4]} 6. Nh4 {[%clk 0:09:39.6]} 6... Be4 {[%clk 0:10:03.7]}
7. f3 {[%clk 0:09:39.8]} 7... Bg6 {[%clk 0:10:04.7]} 8. Qb3 {[%clk 0:09:37.9]}
8... Qc7 {[%clk 0:10:06.1]} 9. Bd2 {[%clk 0:09:38.4]} 9... Be7 {[%clk
0:10:07.7]} 10. cxd5 {[%clk 0:09:26.9]} 10... cxd5 {[%clk 0:10:07.4]} 11. Nxg6
{[%clk 0:09:26.1]} 11... hxg6 {[%clk 0:10:09.3]} 12. O-O-O {[%clk 0:09:27.3]}
12... Nc6 {[%clk 0:10:09]} 13. Kb1 {[%clk 0:09:28.4]} 13... Nd7 {[%clk
0:08:48.6]} 14. Rc1 {[%clk 0:09:11.8]} 14... a6 {[%clk 0:07:53.9]} 15. g3 {[%clk
0:08:42.5]} 15... Na5 {[%clk 0:07:15.4]} 16. Qd1 {[%clk 0:06:52.1]} 16... Nc4
{[%clk 0:07:05.7]} 17. e4 {[%clk 0:06:33.9]} 17... Qb6 {[%clk 0:06:18.9]} 18.
Bxc4 {[%clk 0:05:29.7]} 18... dxc4 {[%clk 0:06:20.8]} 19. Bf4 {[%clk 0:05:13.3]}
19... Rc8 {[%clk 0:05:57.1]} 20. h4 {[%clk 0:05:00.8]} 20... Qa5 {[%clk
0:04:59.3]} 21. e5 {[%clk 0:04:46]} 21... Nb6 {[%clk 0:04:44.3]} 22. Bg5 {[%clk
0:04:34]} 22... Bb4 {[%clk 0:04:30.9]} 23. Ne4 {[%clk 0:04:04.1]} 23... Nd5
{[%clk 0:04:31.5]} 24. Rh2 {[%clk 0:03:44.8]} 24... b5 {[%clk 0:04:30.2]} 25.
Bd2 {[%clk 0:03:41]} 25... Rc6 {[%clk 0:03:54.2]} 26. Nd6+ {[%clk 0:03:26.4]}
26... Rxd6 {[%clk 0:03:55.4]} 27. exd6 {[%clk 0:03:28.3]} 27... Kd7 {[%clk
0:03:52.5]} 28. Bxb4 {[%clk 0:03:18.9]} 28... Nxb4 {[%clk 0:03:37.5]} 29. b3
{[%clk 0:03:17.2]} 29... Rc8 {[%clk 0:03:18.2]} 30. Qd2 {[%clk 0:02:56.3]} 30...
Qa3 {[%clk 0:02:15.4]} 31. bxc4 {[%clk 0:01:22.1]} 31... bxc4 {[%clk 0:02:14.6]}
32. Rc3 {[%clk 0:01:21.3]} 32... Qa4 {[%clk 0:02:12.3]} 33. Qb2 {[%clk
0:00:38.4]} 33... Qb5 {[%clk 0:01:38]} 34. Ka1 {[%clk 0:00:27.7]} 34... Qa5
{[%clk 0:01:01.5]} 35. Ra3 {[%clk 0:00:22.2]} 35... Qb5 {[%clk 0:00:58.1]} 36.
d5 {[%clk 0:00:14]} 36... c3 {[%clk 0:00:44.5]} 37. dxe6+ {[%clk 0:00:04.9]}
37... fxe6 {[%clk 0:00:46.4]} 38. Qc1 {[%clk 0:00:04.8]} 38... c2 {[%clk
0:00:43.6]} 39. Rd2 {[%clk 0:00:04.6]} 39... Qe5+ {[%clk 0:00:40.2]} 0-1